[Event "*** Titled Tuesday Blitz"]
[Site "Chess.com"]
[Date "2020.05.19"]
[Round "7"]
[White "LiverpooL174"]
[Black "Maybe00"]
[Result "1-0"]
[WhiteElo "2548"]
[BlackElo "2664"]
[TimeControl "180+1"]
[EndTime "13:21:03 PDT"]
[Termination "LiverpooL174 won by checkmate"]

1. Nf3 {[%clk 0:03:00.9]} 1... d5 {[%clk 0:02:59.7]} 2. b3 {[%clk 0:03:01.8]}
2... c6 {[%clk 0:02:58.8]} 3. Bb2 {[%clk 0:03:02.7]} 3... Bg4 {[%clk 0:02:57.4]}
4. e3 {[%clk 0:03:03]} 4... e6 {[%clk 0:02:56.6]} 5. Be2 {[%clk 0:03:03.5]} 5...
Nf6 {[%clk 0:02:56.2]} 6. c4 {[%clk 0:03:04]} 6... Nbd7 {[%clk 0:02:56.5]} 7.
O-O {[%clk 0:03:03.4]} 7... Bd6 {[%clk 0:02:57.1]} 8. d4 {[%clk 0:03:03.9]} 8...
Qe7 {[%clk 0:02:57.2]} 9. Ne5 {[%clk 0:03:03.6]} 9... Bxe2 {[%clk 0:02:56.8]}
10. Qxe2 {[%clk 0:03:04.5]} 10... O-O {[%clk 0:02:57.4]} 11. Nd2 {[%clk
0:03:03.5]} 11... Rfd8 {[%clk 0:02:54.6]} 12. f4 {[%clk 0:03:01.1]} 12... a5
{[%clk 0:02:51.3]} 13. a3 {[%clk 0:02:54.5]} 13... Nf8 {[%clk 0:02:49.6]} 14.
Kh1 {[%clk 0:02:50.7]} 14... Ng6 {[%clk 0:02:49.5]} 15. g4 {[%clk 0:02:48]}
15... Ne4 {[%clk 0:02:47.8]} 16. Nxe4 {[%clk 0:02:47.6]} 16... dxe4 {[%clk
0:02:48.7]} 17. Nxg6 {[%clk 0:02:38.7]} 17... hxg6 {[%clk 0:02:49.6]} 18. h3
{[%clk 0:02:33.6]} 18... f5 {[%clk 0:02:46.2]} 19. g5 {[%clk 0:02:32.4]} 19...
Kf7 {[%clk 0:02:45.6]} 20. c5 {[%clk 0:02:31.1]} 20... Bc7 {[%clk 0:02:45.2]}
21. Kg2 {[%clk 0:02:31.8]} 21... Rh8 {[%clk 0:02:42.1]} 22. Rh1 {[%clk
0:02:31.9]} 22... Rh4 {[%clk 0:02:40.5]} 23. Bc3 {[%clk 0:02:30.3]} 23... Qd7
{[%clk 0:02:40]} 24. Be1 {[%clk 0:02:28.2]} 24... Rh5 {[%clk 0:02:38.6]} 25. Bg3
{[%clk 0:02:26.9]} 25... Qd5 {[%clk 0:02:38.4]} 26. Rab1 {[%clk 0:02:25.4]}
26... Rhh8 {[%clk 0:02:37.8]} 27. Qc4 {[%clk 0:02:22.4]} 27... Rhb8 {[%clk
0:02:33.9]} 28. Qxd5 {[%clk 0:02:20.4]} 28... exd5 {[%clk 0:02:32.5]} 29. b4
{[%clk 0:02:19.4]} 29... axb4 {[%clk 0:02:32.3]} 30. Rxb4 {[%clk 0:02:18.1]}
30... Rxa3 {[%clk 0:02:30.2]} 31. Rhb1 {[%clk 0:02:15.2]} 31... Ra7 {[%clk
0:02:30.1]} 32. Be1 {[%clk 0:02:13.6]} 32... Ke7 {[%clk 0:02:30.2]} 33. h4
{[%clk 0:02:11.6]} 33... Kd7 {[%clk 0:02:30.6]} 34. Kf1 {[%clk 0:02:10.3]} 34...
Kc8 {[%clk 0:02:30.5]} 35. R4b2 {[%clk 0:02:09.4]} 35... Ra6 {[%clk 0:02:30.6]}
36. Ke2 {[%clk 0:02:07.8]} 36... b6 {[%clk 0:02:30.5]} 37. cxb6 {[%clk
0:02:06.8]} 37... Rbxb6 {[%clk 0:02:29.2]} 38. Rxb6 {[%clk 0:02:07.3]} 38...
Bxb6 {[%clk 0:02:28.4]} 39. Bb4 {[%clk 0:02:06.1]} 39... Ra2+ {[%clk 0:02:18.9]}
40. Kf1 {[%clk 0:02:06.7]} 40... Rh2 {[%clk 0:02:17.7]} 41. Kg1 {[%clk
0:02:02.7]} 41... Rxh4 {[%clk 0:02:17.4]} 42. Bf8 {[%clk 0:02:03.5]} 42... Bc7
{[%clk 0:02:16.1]} 43. Bxg7 {[%clk 0:02:02.2]} 43... Rh3 {[%clk 0:02:16.4]} 44.
Kf2 {[%clk 0:02:00.9]} 44... Rh2+ {[%clk 0:02:15.8]} 45. Kg3 {[%clk 0:01:59.2]}
45... Re2 {[%clk 0:02:15.8]} 46. Rb3 {[%clk 0:01:59.5]} 46... Rd2 {[%clk
0:02:15.7]} 47. Rb1 {[%clk 0:01:58.3]} 47... Re2 {[%clk 0:02:10.1]} 48. Rb3
{[%clk 0:01:58.2]} 48... Ba5 {[%clk 0:02:10.1]} 49. Be5 {[%clk 0:01:54.6]} 49...
Bc7 {[%clk 0:01:27.3]} 50. Rc3 {[%clk 0:01:47.2]} 50... Kd7 {[%clk 0:01:26.5]}
51. Ra3 {[%clk 0:01:44.3]} 51... Bb6 {[%clk 0:01:13.6]} 52. Rb3 {[%clk
0:01:41.7]} 52... Ba5 {[%clk 0:01:10.5]} 53. Rb7+ {[%clk 0:01:42.3]} 53... Kc8
{[%clk 0:01:10.7]} 54. Rb8+ {[%clk 0:01:42.7]} 54... Kd7 {[%clk 0:01:09.5]} 55.
Rb7+ {[%clk 0:01:43.3]} 55... Ke6 {[%clk 0:01:10]} 56. Rg7 {[%clk 0:01:41.4]}
56... Be1+ {[%clk 0:01:06.9]} 57. Kh3 {[%clk 0:01:35.8]} 57... Rxe3+ {[%clk
0:01:07.2]} 58. Kg2 {[%clk 0:01:29.6]} 58... Rg3+ {[%clk 0:01:00.6]} 59. Kf1
{[%clk 0:01:29.4]} 59... Bb4 {[%clk 0:00:59.5]} 60. Rxg6+ {[%clk 0:01:30.3]}
60... Kd7 {[%clk 0:00:59.7]} 61. Rg7+ {[%clk 0:01:30.2]} 61... Ke8 {[%clk
0:00:58.1]} 62. g6 {[%clk 0:01:24.2]} 62... e3 {[%clk 0:00:48.7]} 63. Rg8+
{[%clk 0:01:24.6]} 63... Ke7 {[%clk 0:00:48.6]} 64. g7 {[%clk 0:01:25.3]} 64...
Kf7 {[%clk 0:00:21.7]} 65. Rb8 {[%clk 0:01:20.2]} 65... Be7 {[%clk 0:00:20.5]}
66. Ke2 {[%clk 0:01:15.1]} 66... c5 {[%clk 0:00:20.6]} 67. dxc5 {[%clk
0:01:13.8]} 67... Bxc5 {[%clk 0:00:20.8]} 68. Rb7+ {[%clk 0:01:13.9]} 68... Ke6
{[%clk 0:00:21.1]} 69. Rb8 {[%clk 0:01:13.5]} 69... Rg2+ {[%clk 0:00:20.2]} 70.
Kf3 {[%clk 0:01:11.5]} 70... e2 {[%clk 0:00:06.4]} 71. Kxg2 {[%clk 0:01:10.4]}
71... e1=Q {[%clk 0:00:06.8]} 72. g8=Q+ {[%clk 0:01:10.8]} 72... Kd7 {[%clk
0:00:07.4]} 73. Qe8# {[%clk 0:01:10.6]} 1-0

[Event "*** Titled Tuesday Blitz"]
[Site "Chess.com"]
[Date "2020.05.19"]
[Round "7"]
[White "JustinWang1234"]
[Black "alenee"]
[Result "1-0"]
[WhiteElo "2583"]
[BlackElo "2424"]
[TimeControl "180+1"]
[EndTime "13:21:03 PDT"]
[Termination "JustinWang1234 won by resignation"]

1. e4 {[%clk 0:03:00.9]} 1... c5 {[%clk 0:02:56.3]} 2. Nc3 {[%clk 0:03:01.2]}
2... e6 {[%clk 0:02:54.9]} 3. Nge2 {[%clk 0:03:00.3]} 3... Nc6 {[%clk
0:02:54.5]} 4. d4 {[%clk 0:02:57.9]} 4... cxd4 {[%clk 0:02:54.2]} 5. Nxd4 {[%clk
0:02:58.8]} 5... Qc7 {[%clk 0:02:54.4]} 6. g3 {[%clk 0:02:53.7]} 6... d6 {[%clk
0:02:53.8]} 7. Bg2 {[%clk 0:02:52.7]} 7... Nxd4 {[%clk 0:02:54.3]} 8. Qxd4
{[%clk 0:02:52.4]} 8... Bd7 {[%clk 0:02:55]} 9. O-O {[%clk 0:02:51.4]} 9... Nf6
{[%clk 0:02:55]} 10. Be3 {[%clk 0:02:27]} 10... Be7 {[%clk 0:02:54.6]} 11. h3
{[%clk 0:02:21.6]} 11... O-O {[%clk 0:02:53.1]} 12. Rfd1 {[%clk 0:02:19.2]}
12... Bc6 {[%clk 0:02:52.5]} 13. Qd2 {[%clk 0:02:15.3]} 13... b5 {[%clk
0:02:49.3]} 14. Bf4 {[%clk 0:02:13.6]} 14... b4 {[%clk 0:02:34.5]} 15. Bxd6
{[%clk 0:01:54]} 15... Bxd6 {[%clk 0:02:27]} 16. Qxd6 {[%clk 0:01:54.9]} 16...
Qb7 {[%clk 0:02:16]} 17. Ne2 {[%clk 0:01:30.7]} 17... Bxe4 {[%clk 0:02:11.4]}
18. Bxe4 {[%clk 0:01:29.6]} 18... Qxe4 {[%clk 0:02:06.3]} 19. Qd3 {[%clk
0:00:33.9]} 19... Rfc8 {[%clk 0:02:05.1]} 20. Qxe4 {[%clk 0:00:33.1]} 20... Nxe4
{[%clk 0:02:04.5]} 21. Rac1 {[%clk 0:00:33.4]} 21... a5 {[%clk 0:01:54.5]} 22.
Kg2 {[%clk 0:00:32]} 22... Kf8 {[%clk 0:01:54]} 23. Nd4 {[%clk 0:00:29.3]} 23...
Rc4 {[%clk 0:01:37.1]} 24. Kf3 {[%clk 0:00:21.3]} 24... Nf6 {[%clk 0:01:29.6]}
25. Ne2 {[%clk 0:00:19.1]} 25... Nd5 {[%clk 0:01:25.3]} 26. Rd4 {[%clk
0:00:17.2]} 26... Rac8 {[%clk 0:01:23.6]} 27. Rxc4 {[%clk 0:00:17.5]} 27... Rxc4
{[%clk 0:01:24.1]} 28. c3 {[%clk 0:00:14.4]} 28... bxc3 {[%clk 0:01:02.1]} 29.
Nxc3 {[%clk 0:00:14.4]} 29... f5 {[%clk 0:00:53.3]} 30. Ke2 {[%clk 0:00:12.3]}
30... Kf7 {[%clk 0:00:52.1]} 31. Kd2 {[%clk 0:00:12.4]} 31... Nb4 {[%clk
0:00:49.7]} 32. a3 {[%clk 0:00:11.9]} 32... Nc6 {[%clk 0:00:46.2]} 33. Ne2
{[%clk 0:00:11.2]} 33... Rxc1 {[%clk 0:00:44.9]} 34. Nxc1 {[%clk 0:00:12.1]}
34... e5 {[%clk 0:00:45.4]} 35. Kc3 {[%clk 0:00:10.6]} 35... Ke6 {[%clk
0:00:44.5]} 36. Kc4 {[%clk 0:00:11.2]} 36... g5 {[%clk 0:00:41.9]} 37. Ne2
{[%clk 0:00:10.2]} 37... h5 {[%clk 0:00:40.4]} 38. Kc5 {[%clk 0:00:10.4]} 38...
Ne7 {[%clk 0:00:33.9]} 39. a4 {[%clk 0:00:09.1]} 39... Nd5 {[%clk 0:00:32.1]}
40. Kb5 {[%clk 0:00:09.1]} 40... f4 {[%clk 0:00:32.2]} 41. gxf4 {[%clk
0:00:07.4]} 41... exf4 {[%clk 0:00:32.2]} 42. Kxa5 {[%clk 0:00:07.2]} 42... g4
{[%clk 0:00:32.4]} 43. hxg4 {[%clk 0:00:06.9]} 43... h4 {[%clk 0:00:31.6]} 44.
Ng1 {[%clk 0:00:06.2]} 44... Nf6 {[%clk 0:00:31]} 45. f3 {[%clk 0:00:06]} 45...
Kd5 {[%clk 0:00:30]} 46. b4 {[%clk 0:00:06]} 46... Kd4 {[%clk 0:00:28.5]} 47. b5
{[%clk 0:00:06.5]} 47... Ke3 {[%clk 0:00:28.7]} 48. g5 {[%clk 0:00:06.7]} 48...
Nd7 {[%clk 0:00:25.3]} 49. g6 {[%clk 0:00:06.9]} 49... Kf2 {[%clk 0:00:26]} 50.
Nh3+ {[%clk 0:00:07]} 50... Kg3 {[%clk 0:00:25]} 51. g7 {[%clk 0:00:06.3]} 51...
Nf6 {[%clk 0:00:23.9]} 52. Nxf4 {[%clk 0:00:06.5]} 52... Kxf4 {[%clk 0:00:23.6]}
53. b6 {[%clk 0:00:06.9]} 53... h3 {[%clk 0:00:24.1]} 54. b7 {[%clk 0:00:07.5]}
54... h2 {[%clk 0:00:24.6]} 55. b8=Q+ {[%clk 0:00:07.8]} 55... Kxf3 {[%clk
0:00:24.5]} 56. Qxh2 {[%clk 0:00:08.3]} 1-0

[Event "*** Titled Tuesday Blitz"]
[Site "Chess.com"]
[Date "2020.05.19"]
[Round "7"]
[White "FGHSMN"]
[Black "Piotrek1979"]
[Result "1-0"]
[WhiteElo "2514"]
[BlackElo "2358"]
[TimeControl "180+1"]
[EndTime "13:21:04 PDT"]
[Termination "FGHSMN won on time"]

1. e4 {[%clk 0:03:00.9]} 1... c5 {[%clk 0:02:59.6]} 2. Nf3 {[%clk 0:02:59.9]}
2... e6 {[%clk 0:03:00.5]} 3. d4 {[%clk 0:03:00]} 3... cxd4 {[%clk 0:02:56.6]}
4. Nxd4 {[%clk 0:03:00.5]} 4... a6 {[%clk 0:02:57.3]} 5. c4 {[%clk 0:02:59.8]}
5... Nf6 {[%clk 0:02:55.6]} 6. Nc3 {[%clk 0:02:59.3]} 6... d6 {[%clk 0:02:56.5]}
7. Be3 {[%clk 0:02:58.3]} 7... b6 {[%clk 0:02:56.7]} 8. Be2 {[%clk 0:02:58.2]}
8... Bb7 {[%clk 0:02:57]} 9. f3 {[%clk 0:02:58.9]} 9... Nbd7 {[%clk 0:02:57.2]}
10. O-O {[%clk 0:02:59]} 10... Qc7 {[%clk 0:02:57.8]} 11. Rc1 {[%clk 0:02:58.3]}
11... Be7 {[%clk 0:02:58.4]} 12. Nd5 {[%clk 0:02:42.5]} 12... exd5 {[%clk
0:02:56.3]} 13. cxd5 {[%clk 0:02:43.1]} 13... Qb8 {[%clk 0:01:22.7]} 14. Nc6
{[%clk 0:02:42.3]} 14... Bxc6 {[%clk 0:01:22.9]} 15. dxc6 {[%clk 0:02:41.7]}
15... Nc5 {[%clk 0:01:22.5]} 16. c7 {[%clk 0:01:21.3]} 16... Qb7 {[%clk
0:01:15.5]} 17. b4 {[%clk 0:01:19.9]} 17... Ne6 {[%clk 0:01:13.9]} 18. Qc2
{[%clk 0:01:10.7]} 18... O-O {[%clk 0:00:43.7]} 19. Qc6 {[%clk 0:01:05.9]} 19...
Qxc6 {[%clk 0:00:33.4]} 20. Rxc6 {[%clk 0:01:06.3]} 20... b5 {[%clk 0:00:28.9]}
21. a4 {[%clk 0:00:57.7]} 21... Rfc8 {[%clk 0:00:23.8]} 22. axb5 {[%clk
0:00:33.6]} 22... axb5 {[%clk 0:00:23]} 23. Rfc1 {[%clk 0:00:28.8]} 23... d5
{[%clk 0:00:23.1]} 24. e5 {[%clk 0:00:23.2]} 24... Nd7 {[%clk 0:00:19.8]} 25. f4
{[%clk 0:00:23.5]} 25... d4 {[%clk 0:00:20.1]} 26. Bd2 {[%clk 0:00:23.4]} 26...
g6 {[%clk 0:00:20.4]} 27. Bxb5 {[%clk 0:00:22.9]} 27... Ra2 {[%clk 0:00:16.2]}
28. Ba6 {[%clk 0:00:20.5]} 28... Rxa6 {[%clk 0:00:15.6]} 29. Rxa6 {[%clk
0:00:20.4]} 29... Rxc7 {[%clk 0:00:10.4]} 30. Rxc7 {[%clk 0:00:21]} 30... Nxc7
{[%clk 0:00:10.7]} 31. Ra7 {[%clk 0:00:21.5]} 31... Bd8 {[%clk 0:00:10.7]} 32.
b5 {[%clk 0:00:21.7]} 32... Kg7 {[%clk 0:00:09.8]} 33. Ba5 {[%clk 0:00:18.4]}
33... Nxb5 {[%clk 0:00:08.6]} 34. Rxd7 {[%clk 0:00:18.6]} 34... Bxa5 {[%clk
0:00:08.6]} 35. Rd5 {[%clk 0:00:19.3]} 35... d3 {[%clk 0:00:07]} 36. Rxb5 {[%clk
0:00:19.1]} 36... Bd2 {[%clk 0:00:05.1]} 37. g3 {[%clk 0:00:18.3]} 37... Be3+
{[%clk 0:00:05.2]} 38. Kf1 {[%clk 0:00:18.5]} 38... g5 {[%clk 0:00:04.7]} 39. f5
{[%clk 0:00:17.8]} 39... g4 {[%clk 0:00:05.2]} 40. Rd5 {[%clk 0:00:17.6]} 40...
d2 {[%clk 0:00:05.1]} 41. Ke2 {[%clk 0:00:18.1]} 41... Bg5 {[%clk 0:00:05.2]}
42. Rd7 {[%clk 0:00:17.5]} 42... Kf8 {[%clk 0:00:04.4]} 43. e6 {[%clk
0:00:17.3]} 43... fxe6 {[%clk 0:00:04.8]} 44. fxe6 {[%clk 0:00:18]} 44... h6
{[%clk 0:00:05.3]} 45. Rf7+ {[%clk 0:00:17.7]} 45... Ke8 {[%clk 0:00:05.4]} 46.
Rd7 {[%clk 0:00:18.1]} 46... Kf8 {[%clk 0:00:05.3]} 47. Kd1 {[%clk 0:00:18.6]}
47... Ke8 {[%clk 0:00:05.4]} 48. Kc2 {[%clk 0:00:19.1]} 48... Kf8 {[%clk
0:00:05.4]} 49. Kb3 {[%clk 0:00:18.3]} 49... Ke8 {[%clk 0:00:05.7]} 50. Kc4
{[%clk 0:00:18.1]} 50... h5 {[%clk 0:00:01.2]} 51. Kc3 {[%clk 0:00:16.4]} 1-0

[Event "*** Titled Tuesday Blitz"]
[Site "Chess.com"]
[Date "2020.05.19"]
[Round "7"]
[White "ChessWarrior7197"]
[Black "SaySpade4VIP"]
[Result "0-1"]
[WhiteElo "2906"]
[BlackElo "2705"]
[TimeControl "180+1"]
[EndTime "13:21:05 PDT"]
[Termination "SaySpade4VIP won by resignation"]

1. e4 {[%clk 0:03:00.9]} 1... c6 {[%clk 0:02:59.9]} 2. d4 {[%clk 0:03:01]} 2...
d5 {[%clk 0:03:00.8]} 3. e5 {[%clk 0:03:01.9]} 3... c5 {[%clk 0:03:00.5]} 4.
dxc5 {[%clk 0:03:01.6]} 4... e6 {[%clk 0:03:00.1]} 5. Be3 {[%clk 0:03:00.9]}
5... Nd7 {[%clk 0:02:54.3]} 6. Nf3 {[%clk 0:03:01.4]} 6... Bxc5 {[%clk
0:02:52.1]} 7. Bxc5 {[%clk 0:03:01.7]} 7... Nxc5 {[%clk 0:02:53]} 8. Qd4 {[%clk
0:03:02.3]} 8... Qb6 {[%clk 0:02:48.6]} 9. Nbd2 {[%clk 0:03:02.4]} 9... Bd7
{[%clk 0:02:41.1]} 10. Nb3 {[%clk 0:03:02.2]} 10... Rc8 {[%clk 0:02:41]} 11.
Nxc5 {[%clk 0:02:57.8]} 11... Rxc5 {[%clk 0:02:30.6]} 12. Bd3 {[%clk 0:02:56.4]}
12... Ne7 {[%clk 0:02:19.8]} 13. b4 {[%clk 0:02:56.5]} 13... Rc8 {[%clk
0:02:14.5]} 14. Qxb6 {[%clk 0:02:55.8]} 14... axb6 {[%clk 0:02:14.7]} 15. Kd2
{[%clk 0:02:52.9]} 15... Nc6 {[%clk 0:01:59.7]} 16. b5 {[%clk 0:02:52.2]} 16...
Na5 {[%clk 0:01:54.5]} 17. Nd4 {[%clk 0:02:51]} 17... Ke7 {[%clk 0:01:53.5]} 18.
f4 {[%clk 0:02:49.5]} 18... Rc5 {[%clk 0:01:39.1]} 19. a4 {[%clk 0:02:48.5]}
19... Rhc8 {[%clk 0:01:36.2]} 20. Rhb1 {[%clk 0:02:43.4]} 20... Nc4+ {[%clk
0:01:32.6]} 21. Ke2 {[%clk 0:02:43]} 21... f6 {[%clk 0:01:24.6]} 22. Nf3 {[%clk
0:02:39]} 22... Be8 {[%clk 0:01:14.6]} 23. g4 {[%clk 0:02:37.7]} 23... fxe5
{[%clk 0:01:08.3]} 24. fxe5 {[%clk 0:02:32.8]} 24... Bg6 {[%clk 0:01:06.4]} 25.
Ra2 {[%clk 0:02:29.6]} 25... Rf8 {[%clk 0:00:58.4]} 26. h4 {[%clk 0:02:20.1]}
26... Rxf3 {[%clk 0:00:50.4]} 27. Kxf3 {[%clk 0:02:17.7]} 27... Nd2+ {[%clk
0:00:49.3]} 28. Ke3 {[%clk 0:02:14]} 28... Nxb1 {[%clk 0:00:50.2]} 29. Kd4
{[%clk 0:02:13.7]} 29... Nd2 {[%clk 0:00:31.2]} 30. a5 {[%clk 0:02:13.5]} 30...
Nf3+ {[%clk 0:00:31.2]} 31. Ke3 {[%clk 0:02:12.6]} 31... Nxe5 {[%clk 0:00:31.5]}
32. a6 {[%clk 0:02:08.9]} 32... bxa6 {[%clk 0:00:26.5]} 33. bxa6 {[%clk
0:02:09.3]} 33... Rc8 {[%clk 0:00:24.3]} 34. Rb2 {[%clk 0:02:01.3]} 34... Bxd3
{[%clk 0:00:15.8]} 35. cxd3 {[%clk 0:02:02.2]} 35... Nxg4+ {[%clk 0:00:16.3]}
36. Kf4 {[%clk 0:01:57.3]} 36... h5 {[%clk 0:00:12.6]} 37. Rxb6 {[%clk
0:01:56.8]} 37... Kf6 {[%clk 0:00:10.8]} 38. d4 {[%clk 0:01:51.2]} 38... Rc4
{[%clk 0:00:08.5]} 39. Rb8 {[%clk 0:01:41.2]} 39... Rxd4+ {[%clk 0:00:07.8]} 40.
Kf3 {[%clk 0:01:41.4]} 40... Ra4 {[%clk 0:00:08.7]} 41. Ra8 {[%clk 0:01:41.1]}
41... Ne5+ {[%clk 0:00:07.7]} 42. Ke3 {[%clk 0:01:39.1]} 42... Nc4+ {[%clk
0:00:08]} 43. Kd3 {[%clk 0:01:36.2]} 43... Nb6 {[%clk 0:00:08.4]} 44. Ra7 {[%clk
0:01:36.7]} 44... Ke5 {[%clk 0:00:07]} 45. Kc3 {[%clk 0:01:34.6]} 45... Ra3+
{[%clk 0:00:06.5]} 46. Kb4 {[%clk 0:01:34.5]} 46... Nc4 {[%clk 0:00:05.2]} 47.
Kb5 {[%clk 0:01:32.8]} 47... Ke4 {[%clk 0:00:05.2]} 48. Ra8 {[%clk 0:01:30.3]}
48... e5 {[%clk 0:00:02.9]} 49. a7 {[%clk 0:01:30]} 49... Nd6+ {[%clk
0:00:02.9]} 50. Kb6 {[%clk 0:01:27.2]} 50... d4 {[%clk 0:00:02]} 51. Kc5 {[%clk
0:01:16.7]} 51... Nf5 {[%clk 0:00:01]} 52. Kb4 {[%clk 0:01:13.1]} 52... Ra1
{[%clk 0:00:01.1]} 53. Kb3 {[%clk 0:01:12.1]} 53... d3 {[%clk 0:00:01.5]} 54.
Kb2 {[%clk 0:01:13]} 54... Ra6 {[%clk 0:00:02]} 55. Kc3 {[%clk 0:01:12.1]} 55...
Nd4 {[%clk 0:00:02.3]} 56. Rd8 {[%clk 0:01:12.4]} 56... Rxa7 {[%clk 0:00:02.3]}
57. Re8 {[%clk 0:01:12.5]} 57... Rc7+ {[%clk 0:00:02.7]} 58. Kd2 {[%clk
0:01:12.6]} 58... Rc2+ {[%clk 0:00:03.6]} 59. Kd1 {[%clk 0:01:12.9]} 59... Re2
{[%clk 0:00:04.5]} 60. Re6 {[%clk 0:01:11.2]} 60... Nf5 {[%clk 0:00:04.4]} 61.
Kc1 {[%clk 0:01:10]} 61... Ne3 {[%clk 0:00:04.5]} 62. Rd6 {[%clk 0:01:09.6]}
62... Rc2+ {[%clk 0:00:03.9]} 63. Kb1 {[%clk 0:01:09.5]} 63... d2 {[%clk
0:00:04.5]} 64. Rd7 {[%clk 0:01:08.6]} 64... d1=Q+ {[%clk 0:00:04.1]} 65. Rxd1
{[%clk 0:01:09.5]} 65... Nxd1 {[%clk 0:00:05]} 66. Kxc2 {[%clk 0:01:10.4]} 66...
Ne3+ {[%clk 0:00:05.9]} 67. Kd2 {[%clk 0:01:11.3]} 67... Nf5 {[%clk 0:00:06.8]}
0-1

[Event "*** Titled Tuesday Blitz"]
[Site "Chess.com"]
[Date "2020.05.19"]
[Round "7"]
[White "Xeslu"]
[Black "TV27"]
[Result "1-0"]
[WhiteElo "2357"]
[BlackElo "2092"]
[TimeControl "180+1"]
[EndTime "13:21:06 PDT"]
[Termination "Xeslu won by checkmate"]

1. e4 {[%clk 0:02:52.5]} 1... d6 {[%clk 0:02:58.6]} 2. d4 {[%clk 0:02:51.9]}
2... Nd7 {[%clk 0:02:57.4]} 3. Nf3 {[%clk 0:02:49.6]} 3... g6 {[%clk 0:02:57.3]}
4. Nc3 {[%clk 0:02:48.8]} 4... Bg7 {[%clk 0:02:57.3]} 5. Be2 {[%clk 0:02:48.9]}
5... b6 {[%clk 0:02:55.2]} 6. O-O {[%clk 0:02:48.7]} 6... Bb7 {[%clk 0:02:54.9]}
7. Bd3 {[%clk 0:02:32.7]} 7... h6 {[%clk 0:02:50.9]} 8. Re1 {[%clk 0:02:31.9]}
8... e5 {[%clk 0:02:50.3]} 9. Be3 {[%clk 0:02:26.3]} 9... Ngf6 {[%clk
0:02:48.4]} 10. h3 {[%clk 0:02:21.4]} 10... Nh5 {[%clk 0:02:45.2]} 11. Qd2
{[%clk 0:02:05.8]} 11... g5 {[%clk 0:02:43.7]} 12. Rad1 {[%clk 0:01:50.9]} 12...
Qe7 {[%clk 0:02:38.5]} 13. dxe5 {[%clk 0:01:47.4]} 13... dxe5 {[%clk 0:02:36]}
14. Nd5 {[%clk 0:01:46]} 14... Bxd5 {[%clk 0:02:33.8]} 15. exd5 {[%clk
0:01:46.9]} 15... O-O {[%clk 0:02:27.4]} 16. Bf5 {[%clk 0:01:43.5]} 16... Rad8
{[%clk 0:02:19.6]} 17. c4 {[%clk 0:01:40.8]} 17... Nc5 {[%clk 0:02:17]} 18. Qc2
{[%clk 0:01:37]} 18... Nf4 {[%clk 0:02:14.6]} 19. Bxf4 {[%clk 0:01:30.4]} 19...
gxf4 {[%clk 0:02:13.9]} 20. b4 {[%clk 0:01:30.1]} 20... Nb7 {[%clk 0:02:10.8]}
21. a3 {[%clk 0:01:29.7]} 21... Kh8 {[%clk 0:02:07.1]} 22. Qe4 {[%clk
0:01:24.7]} 22... Nd6 {[%clk 0:02:04.7]} 23. Qc2 {[%clk 0:01:12]} 23... Nxf5
{[%clk 0:01:55.8]} 24. Qxf5 {[%clk 0:01:10.6]} 24... Rfe8 {[%clk 0:01:54.8]} 25.
Nd4 {[%clk 0:01:06.5]} 25... Qg5 {[%clk 0:01:39.9]} 26. Qxg5 {[%clk 0:01:02.9]}
26... hxg5 {[%clk 0:01:39.2]} 27. Nc6 {[%clk 0:01:03.8]} 27... Ra8 {[%clk
0:01:32.4]} 28. c5 {[%clk 0:01:01.3]} 28... f6 {[%clk 0:01:31]} 29. d6 {[%clk
0:01:01.3]} 29... cxd6 {[%clk 0:01:27.9]} 30. cxd6 {[%clk 0:01:02.2]} 30... Rec8
{[%clk 0:01:25.5]} 31. b5 {[%clk 0:01:00.6]} 31... Bf8 {[%clk 0:01:16.9]} 32. d7
{[%clk 0:01:00.2]} 32... Rd8 {[%clk 0:01:14.5]} 33. a4 {[%clk 0:00:57.7]} 33...
Bc5 {[%clk 0:01:12.9]} 34. Kf1 {[%clk 0:00:46.8]} 34... Kg7 {[%clk 0:01:11.6]}
35. Ke2 {[%clk 0:00:45.2]} 35... Kf7 {[%clk 0:01:10.9]} 36. Kf3 {[%clk
0:00:42.9]} 36... Ke6 {[%clk 0:01:10.4]} 37. Nxd8+ {[%clk 0:00:40]} 37... Rxd8
{[%clk 0:01:08.9]} 38. g3 {[%clk 0:00:37.1]} 38... Rxd7 {[%clk 0:01:07.8]} 39.
Rxd7 {[%clk 0:00:36.3]} 39... Kxd7 {[%clk 0:01:07.5]} 40. gxf4 {[%clk
0:00:37.2]} 40... exf4 {[%clk 0:01:05.7]} 41. h4 {[%clk 0:00:34.5]} 41... gxh4
{[%clk 0:00:58.1]} 42. Rh1 {[%clk 0:00:34.1]} 42... Bd4 {[%clk 0:00:50.6]} 43.
Rxh4 {[%clk 0:00:33.8]} 43... Kd6 {[%clk 0:00:50.7]} 44. Rxf4 {[%clk 0:00:31.8]}
44... Kc5 {[%clk 0:00:49.6]} 45. Ke4 {[%clk 0:00:29]} 45... Be5 {[%clk 0:00:49]}
46. Rg4 {[%clk 0:00:27.6]} 46... Kb4 {[%clk 0:00:48.4]} 47. Kd5+ {[%clk
0:00:26.3]} 47... Kb3 {[%clk 0:00:26.3]} 48. Re4 {[%clk 0:00:25.9]} 48... Bc3
{[%clk 0:00:25.2]} 49. Kc6 {[%clk 0:00:19.3]} 49... Bb4 {[%clk 0:00:23.6]} 50.
Rf4 {[%clk 0:00:19.1]} 50... Kxa4 {[%clk 0:00:22.8]} 51. Rxf6 {[%clk 0:00:18.7]}
51... Bc5 {[%clk 0:00:22]} 52. Rf5 {[%clk 0:00:18.5]} 52... Ka5 {[%clk
0:00:21.5]} 53. Rxc5 {[%clk 0:00:17.7]} 53... bxc5 {[%clk 0:00:21.6]} 54. Kxc5
{[%clk 0:00:18.6]} 54... Ka4 {[%clk 0:00:21.5]} 55. f4 {[%clk 0:00:17.9]} 55...
a5 {[%clk 0:00:21]} 56. b6 {[%clk 0:00:17.3]} 56... Ka3 {[%clk 0:00:19.9]} 57.
b7 {[%clk 0:00:17.5]} 57... a4 {[%clk 0:00:20.3]} 58. b8=Q {[%clk 0:00:17.6]}
58... Ka2 {[%clk 0:00:21.2]} 59. Kc4 {[%clk 0:00:17.6]} 59... a3 {[%clk
0:00:22.1]} 60. Kc3 {[%clk 0:00:17.1]} 60... Ka1 {[%clk 0:00:23]} 61. Kc2 {[%clk
0:00:17.1]} 61... a2 {[%clk 0:00:23.9]} 62. Qb2# {[%clk 0:00:16.8]} 1-0